[Event "WSTCC-50 2024"]
[Site "Krakow"]
[Date "2024.07.06"]
[Round "5.2"]
[White "Godena, Michele"]
[Black "Hjartarson, Johann"]
[Result "1/2-1/2"]
[ECO "C44"]
[WhiteElo "2426"]
[BlackElo "2472"]
[Annotator "TA"]
[PlyCount "82"]
[EventDate "2024.07.01"]
[EventType "team-tourn"]
[EventCountry "POL"]
[SourceTitle "playchess.com"]
[Source "ChessBase"]
[SourceQuality "1"]
[TimeControl "40/5400+30:1800+30"]

{[%evp 17,82,4,0,0,0,0,0,0,19,11,17,0,0,0,31,22,44,46,68,33,42,38,38,39,46,10,37,26,28,26,34,4,7,6,6,3,5,2,2,0,0,0,0,0,0,0,315,292,303,276,5085,5073,2445,0,0,0,0,0,0,0,0,0,0,0,0,0,0]} 1. e4 {[%emt 0:00:02]} e5 {[%emt 0:00:12]} 2. Nf3 {[%emt 0:00:10]} Nc6 {[%emt 0:00:06]} 3. d4 {[%emt 0:05:47]} exd4 {[%emt 0:00:09]} 4. Nxd4 {[%emt 0:00:05]} Nf6 {[%emt 0:01:06]} 5. Nc3 {[%emt 0:01:47]} Bb4 {[%emt 0:00:18]} 6. Nxc6 {[%emt 0:00:11]} bxc6 {[%emt 0:00:06]} 7. Bd3 {[%emt 0:00:06]} d5 {[%emt 0:00:31]} 8. exd5 {[%emt 0:00:16]} O-O {[%emt 0:00:16]} 9. O-O {[%emt 0:00:18]} cxd5 {[%emt 0:00:06]} 10. h3 {[%emt 0:01:49] Prevents Bg4} c6 {[%emt 0:00:18]} 11. Qf3 {[%emt 0:00:48]} Bd6 {[%emt 0:00:25]} 12. Bf4 {[%emt 0:02:43]} Rb8 {[%emt 0:00:27]} 13. b3 {[%emt 0:01:53]} Re8 {[%emt 0:00:18]} 14. Rad1 {[%emt 0:17:30]} Be6 {[%emt 0:02:07]} 15. Ne2 {[%emt 0:05:34]} c5 {[%emt 0:02:34]} 16. Rfe1 {[%emt 0:09:39]} Bxf4 {[%emt 0:26:03]} 17. Nxf4 {[%emt 0:00:35][%cal Od3c4]} Qa5 {[%emt 0:00:34]} 18. Nxe6 {[%emt 0:12:11]} fxe6 {[%emt 0:01:42]} 19. Qg3 {[%emt 0:10:09][%cal Oe1e6]} Rb7 {[%emt 0:03:28]} 20. c4 {[%emt 0:07:54] cxd5 would now be deadly.} d4 {[%emt 0:02:04]} 21. Re5 {[%emt 0:00:44]} Rbe7 {[%emt 0:11:56]} 22. Rde1 {[%emt 0:05:03]} Qxa2 {[%emt 0:16:33]} 23. Rxc5 {[%emt 0:00:53]} Qd2 {[%emt 0:01:26]} 24. Rce5 {[%emt 0:07:09]} Nd7 {[%emt 0:02:22]} 25. R5e2 {[%emt 0:01:47]} Qc3 {[%emt 0:00:32] [#]} 26. b4 $1 $36 {[%emt 0:01:52][%mdl 2048] Against Nc5. White has the initiative.} e5 {[%emt 0:05:37]} 27. c5 {[%emt 0:01:13][%cal Bc4c5,Bc5c6,Bc6c7][%mdl 32]} Nf6 {[%emt 0:07:50][%cal Oe5e4]} 28. Rxe5 {[%emt 0:04:14]} (28. Bb5 {looks sharper.} Qxg3 29. fxg3 Rb8 30. Bd3) 28... Rxe5 {[%emt 0:01:49]} (28... Qxe1+ $2 29. Rxe1 Rxe1+ 30. Kh2 $18) 29. Rxe5 {[%emt 0:00:01]} Rxe5 {[%emt 0:00:33]} (29... Qxb4 $2 30. Rxe8+ Nxe8 31. Qe5 $18) 30. Qxe5 {[%emt 0:00:03]} Qxd3 {[%emt 0:00:14]} 31. c6 {[%emt 0:00:52]} Kf7 $2 {[%emt 0:12:01][%mdl 8192] [#]} (31... Qb1+ $11 {and Black is okay.} 32. Kh2 Qe4 (32... Qxb4 $2 {loses.} 33. Qe6+ Kf8 34. c7 $18) 33. Qb8+ Kf7) 32. c7 $1 $18 {[%emt 0:01:04]} Qa6 {[%emt 0:00:25]} 33. Qxd4 {[%emt 0:01:33]} Kg6 $2 {[%emt 0:02:18] [#]} (33... Ng8 34. Qd5+ Kf6) 34. b5 $1 {[%emt 0:01:02][%mdl 512]} Qe6 {[%emt 0:00:24]} 35. Qd8 $2 {[%emt 0:00:28]} ({Less strong is} 35. Qxa7 Nd5 $18) (35. Qc3 $18 Qc8 36. Qd3+ Kh6 37. Qd8) 35... Qe1+ $11 {[%emt 0:00:35] The position is equal.} 36. Kh2 {[%emt 0:00:01] aiming for Qd3+.} Qe5+ {[%emt 0:00:19]} 37. Kg1 {[%emt 0:00:30]} Qe1+ {[%emt 0:00:08]} 38. Kh2 {[%emt 0:00:02]} Qe5+ {[%emt 0:00:08]} 39. g3 {[%emt 0:01:01]} Qf5 {[%emt 0:00:46]} 40. Qd4 {[%emt 0:00:53] And now g4 would win.} (40. c8=B $2 {perishes.} Qxf2+ 41. Kh1 Qxg3 $19) 40... Ne8 {[%emt 0:01:03]} 41. Qxa7 {[%emt 0:25:10]} Nxc7 {[%emt 0:00:21] Weighted Error Value: White=0.21 (precise) /Black=0.18 (very precise) .  Loses game:     	---       	Black=1      Mistake:       	---       	Black=1      Inaccurate:     	White=3     	Black=2      OK:         	White=12    	Black=17     Best:        	White=1     	Black=2      Strong:       	White=1     	---        Brilliant:      	White=1     	---} 1/2-1/2

[Event "WSTCC-50 2024"]
[Site "Krakow"]
[Date "2024.07.06"]
[Round "5.2"]
[White "Cummings, David H."]
[Black "Marinello, Beatriz"]
[Result "1-0"]
[ECO "A29"]
[WhiteElo "2314"]
[BlackElo "2109"]
[Annotator "TA"]
[PlyCount "113"]
[EventDate "2024.07.01"]
[EventType "team-tourn"]
[EventCountry "POL"]
[SourceTitle "playchess.com"]
[Source "ChessBase"]
[SourceQuality "1"]
[TimeControl "40/5400+30:1800+30"]

{[%evp 16,113,0,-4,-6,9,0,0,46,44,41,39,58,55,75,71,83,67,91,84,93,91,99,88,101,102,101,102,106,79,105,96,93,81,84,81,87,79,86,64,71,68,111,122,126,126,139,133,117,139,122,129,108,107,179,175,229,229,212,155,176,170,254,245,262,243,243,193,186,177,297,157,261,248,247,262,267,269,239,154,130,0,247,155,183,168,172,173,181,172,298,194,257,275,666,552,29960,29968,29970,29971]} 1. c4 {[%emt 0:00:08]} e5 {[%emt 0:00:11]} 2. Nc3 {[%emt 0:00:17]} Nf6 {[%emt 0:00:23]} 3. Nf3 {[%emt 0:00:18]} Nc6 {[%emt 0:00:11]} 4. g3 {[%emt 0:00:31]} d5 {[%emt 0:00:20]} 5. cxd5 {[%emt 0:00:07]} Nxd5 {[%emt 0:00:09]} 6. Bg2 {[%emt 0:00:17]} Nb6 {[%emt 0:00:20]} 7. O-O {[%emt 0:00:39]} Be7 {[%emt 0:00:18]} 8. b3 {[%emt 0:00:48]} O-O {[%emt 0:01:06]} 9. Bb2 {[%emt 0:00:28][%cal Od2d4]} Re8 {[%emt 0:01:58]} 10. Rc1 {[%emt 0:01:59][%cal Od2d4]} Bf5 {[%emt 0:01:04]} 11. d3 {[%emt 0:08:56]} Bf6 {[%emt 0:12:03]} (11... Qd7 $11 {feels stronger.}) 12. Ne4 $14 {[%emt 0:04:39]} Bxe4 $1 {[%emt 0:01:18]} 13. dxe4 {[%emt 0:00:06]} Qxd1 {[%emt 0:00:07]} 14. Rfxd1 {[%emt 0:00:15]} Rad8 {[%emt 0:00:07]} 15. Bf1 {[%emt 0:11:02]} Nc8 {[%emt 0:06:23]} 16. e3 {[%emt 0:03:58]} Nd6 {[%emt 0:00:24]} 17. Bd3 {[%emt 0:04:34] White is more active.} Re7 {[%emt 0:05:48]} 18. Kf1 {[%emt 0:06:37]} g6 {[%emt 0:06:17]} 19. Ke2 {[%emt 0:01:47]} Bg7 {[%emt 0:01:11]} 20. Ba3 {[%emt 0:09:58]} Red7 {[%emt 0:01:27]} 21. g4 {[%emt 0:01:35]} h6 {[%emt 0:06:30]} 22. Bb1 {[%emt 0:03:32]} Nb5 {[%emt 0:11:28]} 23. Rxd7 {[%emt 0:00:24]} Rxd7 {[%emt 0:00:01]} 24. Bb2 {[%emt 0:00:22]} f6 {[%emt 0:02:19]} 25. h4 {[%emt 0:04:57]} Nd6 {[%emt 0:04:58]} 26. Nd2 {[%emt 0:08:23]} Kf7 {[%emt 0:02:53]} 27. Nf1 {[%emt 0:01:43]} Bf8 {[%emt 0:02:51]} 28. Ng3 {[%emt 0:00:29]} Nd8 {[%emt 0:04:31]} 29. f4 {[%emt 0:02:45]} exf4 {[%emt 0:00:57]} 30. exf4 {[%emt 0:00:05][%cal Be3f4,Bf4f5][%mdl 32]} Ne6 {[%emt 0:00:30]} 31. f5 {[%emt 0:02:49]} Nf4+ {[%emt 0:00:58]} 32. Kf3 {[%emt 0:01:34]} g5 {[%emt 0:00:07]} 33. hxg5 {[%emt 0:00:45]} hxg5 {[%emt 0:00:09]} 34. Rd1 $36 {[%emt 0:09:47][%mdl 2048] And now e5 would win. White is in control.} Re7 {[%emt 0:00:52]} (34... Bg7 $16) 35. a3 {[%emt 0:00:37]} Re8 {[%emt 0:00:59]} (35... Bg7 $142 36. Bc1 Kf8 37. Bxf4 gxf4) 36. b4 $18 {[%emt 0:01:22]} Bg7 {[%emt 0:00:30]} 37. Ba2+ {[%emt 0:00:43]} Ke7 {[%emt 0:00:04]} 38. Bc1 {[%emt 0:02:23] A strong pair of Bishops.} Rh8 {[%emt 0:05:25]} (38... Kf8 $142 39. a4 b6) 39. Bxf4 {[%emt 0:00:44]} gxf4 {[%emt 0:00:02] [#]} 40. Nh5 {[%emt 0:00:43]} (40. Kxf4 Rh2 41. Bd5 Bh6+ 42. Kf3 Bg5 $11) 40... Bh6 {[%emt 0:00:13]} 41. Be6 {[%emt 0:34:10]} Bg5 {[%emt 0:30:28]} 42. a4 {[%emt 0:00:00]} (42. Nxf4 Rh2 43. a4 Bxf4 44. Kxf4 Rb2 $18) 42... c6 {[%emt 0:00:00]} (42... a6 $142 43. Re1 (43. Nxf4 Rh2 $18) 43... Kf8) 43. Re1 {[%emt 0:00:00]} (43. Nxf4 $18 {Strongly threatening Ng6+.} Bxf4 44. Kxf4) 43... Nf7 {[%emt 0:00:00]} (43... Kd8 $16 44. e5 (44. Nxf4 Rh2 $16) 44... fxe5) 44. Bxf7 $1 {[%emt 0:00:00]} (44. Nxf4 $2 {too greedy.} Ne5+ 45. Kg2 Bxf4 $19) 44... Kxf7 {[%emt 0:00:00][%mdl 4096] Endgame. [#] KRB-KRN} 45. Rd1 {[%emt 0:00:00] Wards off Rd8} ({Much less strong is} 45. Nxf4 $6 Rh2 46. e5 fxe5) 45... Ke7 {[%emt 0:00:00] Prevents Rd7+.} 46. Nxf4 {[%emt 0:00:00] aiming for Ng6+.} Rh2 {[%emt 0:00:00]} 47. Ne6 {[%emt 0:00:00] Threatens to win with Nxg5.} Bh4 {[%emt 0:00:00]} 48. Nf4 {[%emt 0:00:00] Dodges Rh3+} (48. Nc5 $16 Rh3+ 49. Ke2) 48... Bg5 $1 {[%emt 0:00:00] [#]} 49. e5 $1 {[%emt 0:00:00][%mdl 512]} fxe5 {[%emt 0:00:00]} 50. Ng6+ {[%emt 0:00:00]} Ke8 {[%emt 0:00:00]} 51. Nxe5 {[%emt 0:00:00]} Rh3+ {[%emt 0:00:00]} 52. Kg2 {[%emt 0:02:29]} Ra3 {[%emt 0:00:00]} (52... Rb3 $142 53. Re1 Kf8) 53. Nf3 {[%emt 0:00:34]} Be7 {[%emt 0:00:00]} (53... Ra2+ {was worth a try.} 54. Kg3 Ra3) 54. g5 {[%emt 0:01:06][%cal Bg4g5,Bg5f6][%mdl 32] f6 would now be deadly.} Rxa4 $2 {[%emt 0:00:00]} (54... Bxb4 55. g6 Be7) 55. f6 {[%emt 0:00:13] Intending Re1 and mate.} Bxf6 {[%emt 0:00:00]} 56. gxf6 {[%emt 0:00:04]} Rxb4 {[%emt 0:00:00]} 57. Ne5 {[%emt 0:01:00] Weighted Error Value: White=0.20 (precise) /Black=0.42.  Mistake:       	White=2     	Black=9      Inaccurate:     	White=3     	Black=3      OK:         	White=18    	Black=11     Best:        	White=5     	Black=1      Strong:       	White=1     	Black=2} 1-0

[Event "WSTCC-50 2024"]
[Site "Krakow"]
[Date "2024.07.06"]
[Round "5.2"]
[White "Forgo, Eva"]
[Black "Norinkeviciute, Rasa"]
[Result "1/2-1/2"]
[ECO "B93"]
[WhiteElo "2060"]
[BlackElo "1922"]
[Annotator "NA RC"]
[PlyCount "27"]
[EventDate "2024.07.01"]
[EventType "team-tourn"]
[EventCountry "POL"]
[SourceTitle "playchess.com"]
[Source "ChessBase"]
[SourceQuality "1"]
[TimeControl "40/5400+30:1800+30"]

1. e4 {[%emt 0:00:06]} c5 {[%emt 0:00:12]} 2. Nf3 {[%emt 0:00:08]} d6 {[%emt 0:00:06]} 3. d4 {[%emt 0:00:04]} cxd4 {[%emt 0:00:05]} 4. Nxd4 {[%emt 0:00:04]} Nf6 {[%emt 0:00:06]} 5. Nc3 {[%emt 0:00:07]} a6 {[%emt 0:00:05]} 6. f4 {[%emt 0:00:04]} e5 {[%emt 0:03:54]} 7. Nf3 {[%emt 0:00:23]} Qc7 {[%emt 0:00:53]} 8. Bd3 {[%emt 0:00:34]} Be7 {[%emt 0:06:24]} 9. O-O {[%emt 0:02:42]} Be6 {[%emt 0:03:48]} 10. Qe2 {[%emt 0:13:47]} b5 {[%emt 0:13:16]} 11. a3 {[%emt 0:03:43]} Nbd7 {[%emt 0:03:25]} 12. Kh1 {[%emt 0:09:29]} Nb6 {[%emt 0:05:28]} 13. f5 {[%emt 0:05:47]} Bc4 {[%emt 0:00:42]} 14. Bg5 {[%emt 0:01:09]} 1/2-1/2

[Event "WSTCC-50 2024"]
[Site "Krakow"]
[Date "2024.07.06"]
[Round "5.3"]
[White "Petursson, Margeir"]
[Black "Bellia, Fabrizio"]
[Result "1-0"]
[ECO "D38"]
[WhiteElo "2397"]
[BlackElo "2401"]
[Annotator "TA"]
[PlyCount "51"]
[EventDate "2024.07.01"]
[EventType "team-tourn"]
[EventCountry "POL"]
[SourceTitle "playchess.com"]
[Source "ChessBase"]
[SourceQuality "1"]
[TimeControl "40/5400+30:1800+30"]

{[%evp 15,51,-47,-49,-47,0,-46,-12,-22,19,15,12,10,16,10,14,0,141,139,142,149,144,137,382,386,458,482,734,662,680,661,670,676,877,888,871,879,862,862]} 1. d4 {[%emt 0:00:06]} Nf6 {[%emt 0:00:11]} 2. c4 {[%emt 0:00:13]} e6 {[%emt 0:00:07]} 3. Nc3 {[%emt 0:00:12]} d5 {[%emt 0:00:10]} 4. Nf3 {[%emt 0:00:39]} Bb4 {[%emt 0:00:10]} 5. g3 {[%emt 0:00:38]} O-O {[%emt 0:01:17]} 6. Bg2 {[%emt 0:00:07]} dxc4 {[%emt 0:00:13]} 7. O-O {[%emt 0:00:23]} Nc6 {[%emt 0:01:23]} 8. Re1 {[%emt 0:00:50]} Rb8 {[%emt 0:01:51]} 9. a3 {[%emt 0:03:03]} Be7 {[%emt 0:01:40]} (9... Ba5 $15 {should be considered.}) 10. e4 {[%emt 0:00:48]} (10. Qa4 $11) 10... b5 {[%emt 0:01:29]} 11. Bf4 {[%emt 0:00:39] The position is equal.} h6 {[%emt 0:06:15]} 12. d5 {[%emt 0:06:27]} exd5 {[%emt 0:06:24]} 13. exd5 {[%emt 0:04:45][%cal Be4d5,Bd5d6,Bd6c7][%mdl 32]} Na5 {[%emt 0:14:19] [#]} 14. Rxe7 $1 {[%emt 0:01:27]} Qxe7 {[%emt 0:00:12]} 15. d6 $1 {[%emt 0:00:12]} Qd7 {[%emt 0:02:07]} ({Wrong is} 15... cxd6 $2 16. Bxd6 Qe6 17. Bxb8 $18) (15... Qe8 $11 {keeps the balance.}) 16. dxc7 $16 {[%emt 0:00:33] White is more active.} Rb6 {[%emt 0:00:14]} 17. Qxd7 {[%emt 0:08:21]} Bxd7 {[%emt 0:00:50]} 18. Rd1 {[%emt 0:03:20]} Nb7 $2 {[%emt 0:10:23]} (18... Bc8 $16 {was worth a try.} 19. h3 (19. Rd8 Nb7 $16) 19... a6) 19. Ne5 $18 {[%emt 0:05:59]} Be6 {[%emt 0:01:48]} 20. Be3 {[%emt 0:15:12] This pair of bishops is nice. White is clearly winning.} Bc8 {[%emt 0:03:27]} (20... Rd6 $142 21. Bxb7 Rxd1+ 22. Nxd1 Bc8) 21. Bxb6 {[%emt 0:05:46]} axb6 {[%emt 0:00:06]} 22. Nxb5 {[%emt 0:00:24]} Nc5 {[%emt 0:00:37]} 23. Nxc4 {[%emt 0:01:26]} Ba6 {[%emt 0:00:35] [#]} 24. Rd8 $1 {[%emt 0:03:14]} Ne6 {[%emt 0:00:41]} 25. Rxf8+ {[%emt 0:00:13]} Kxf8 {[%emt 0:00:27] [#]} 26. Nxb6 $1 {[%emt 0:00:27] Black got outplayed after the opening.   Weighted Error Value: White=0.03 (flawless) /Black=0.63.  Loses game:     	---       	Black=1      Mistake:       	White=1     	Black=3      Inaccurate:     	---       	Black=2      OK:         	White=6     	Black=1      Best:        	White=2     	---        Strong:       	White=1     	---} 1-0

[Event "WSTCC-50 2024"]
[Site "Krakow"]
[Date "2024.07.06"]
[Round "5.3"]
[White "Sagalchik, Olga"]
[Black "Barron, Michael"]
[Result "1/2-1/2"]
[ECO "A80"]
[WhiteElo "2128"]
[BlackElo "2046"]
[Annotator "RC"]
[PlyCount "135"]
[EventDate "2024.07.01"]
[EventType "team-tourn"]
[EventCountry "POL"]
[SourceTitle "playchess.com"]
[Source "ChessBase"]
[SourceQuality "1"]
[TimeControl "40/5400+30:1800+30"]

1. d4 {[%emt 0:00:06]} f5 {[%emt 0:00:04]} 2. Nc3 {[%emt 0:00:13]} Nf6 {[%emt 0:00:03]} 3. Bg5 {[%emt 0:00:13]} d5 {[%emt 0:00:02]} 4. f3 {[%emt 0:06:28]} Nbd7 {[%emt 0:04:53]} 5. e4 {[%emt 0:01:56]} fxe4 {[%emt 0:00:35]} 6. fxe4 {[%emt 0:00:05]} dxe4 {[%emt 0:00:08]} 7. Bc4 {[%emt 0:06:55]} Nb6 {[%emt 0:00:04]} 8. Bb3 {[%emt 0:03:04]} Bg4 {[%emt 0:05:48]} 9. Qd2 {[%emt 0:02:32]} Qd7 {[%emt 0:00:13]} 10. h3 {[%emt 0:03:47]} Be6 {[%emt 0:01:22]} 11. Nge2 {[%emt 0:07:15]} O-O-O {[%emt 0:05:29]} 12. O-O-O {[%emt 0:08:10]} h6 {[%emt 0:02:46]} 13. Bxf6 {[%emt 0:05:06]} exf6 {[%emt 0:00:05]} 14. Nxe4 {[%emt 0:00:14]} Bf5 {[%emt 0:03:05]} 15. N4g3 {[%emt 0:03:29]} Bh7 {[%emt 0:01:24]} 16. Qa5 {[%emt 0:04:21]} Kb8 {[%emt 0:01:08]} 17. Nc3 {[%emt 0:02:05]} a6 {[%emt 0:03:43]} 18. Rhe1 {[%emt 0:02:17]} Re8 {[%emt 0:03:53]} 19. Rxe8+ {[%emt 0:08:26]} Qxe8 {[%emt 0:00:11]} 20. Kb1 {[%emt 0:00:18]} Qc6 {[%emt 0:06:56]} 21. d5 {[%emt 0:00:34]} Qd6 {[%emt 0:02:45]} 22. Nge4 {[%emt 0:00:23]} Qe5 {[%emt 0:01:57]} 23. Nc5 {[%emt 0:00:22]} Bxc5 {[%emt 0:01:20]} 24. Qxc5 {[%emt 0:00:08]} Re8 {[%emt 0:00:15]} 25. a4 {[%emt 0:00:45]} Nc8 {[%emt 0:00:57]} 26. Bc4 {[%emt 0:03:08]} Qe3 {[%emt 0:05:50]} 27. Qb4 {[%emt 0:04:20]} Ka7 {[%emt 0:00:28]} 28. a5 {[%emt 0:00:39]} Nd6 {[%emt 0:00:19]} 29. Bd3 {[%emt 0:01:58]} Bxd3 {[%emt 0:01:05]} 30. Rxd3 {[%emt 0:00:08]} Qg1+ {[%emt 0:00:10]} 31. Rd1 {[%emt 0:06:38]} Qxg2 {[%emt 0:00:52]} 32. Qc5+ {[%emt 0:01:08]} Kb8 {[%emt 0:00:02]} 33. Rg1 {[%emt 0:00:21]} Qxh3 {[%emt 0:01:09]} 34. Rxg7 {[%emt 0:00:15]} Qf1+ {[%emt 0:00:30]} 35. Ka2 {[%emt 0:00:25]} Qc4+ {[%emt 0:00:03]} 36. Qxc4 {[%emt 0:00:40]} Nxc4 {[%emt 0:00:03]} 37. Rg6 {[%emt 0:02:03]} Rh8 {[%emt 0:02:28]} 38. Rxf6 {[%emt 0:01:06]} h5 {[%emt 0:00:04]} 39. Rf4 {[%emt 0:04:49]} Ne3 {[%emt 0:00:03]} 40. Rh4 {[%emt 0:01:37]} Nxc2 {[%emt 0:01:04]} 41. Ne2 {[%emt 0:32:33]} Ne3 {[%emt 0:31:47]} 42. Nf4 {[%emt 0:01:10]} Rf8 {[%emt 0:02:08]} 43. Nxh5 {[%emt 0:00:00]} Nxd5 {[%emt 0:00:00]} 44. Ng7 {[%emt 0:00:00]} Rf4 {[%emt 0:00:00]} 45. Rxf4 {[%emt 0:00:00]} Nxf4 {[%emt 0:00:00]} 46. b4 {[%emt 0:00:00]} Kc8 {[%emt 0:00:00]} 47. Kb3 {[%emt 0:00:00]} Kd7 {[%emt 0:00:00]} 48. Kc4 {[%emt 0:00:00]} Ne6 {[%emt 0:00:00]} 49. Nf5 {[%emt 0:00:00]} Nd8 {[%emt 0:00:00]} 50. Kc5 {[%emt 0:00:00]} Nf7 {[%emt 0:00:00]} 51. Nd4 {[%emt 0:00:00]} Nd6 {[%emt 0:00:00]} 52. Nb3 {[%emt 0:00:00]} Ke6 {[%emt 0:00:00]} 53. Nd4+ {[%emt 0:00:00]} Ke5 {[%emt 0:00:00]} 54. Nb3 {[%emt 0:01:37]} Ke4 {[%emt 0:00:00]} 55. Nd4 {[%emt 0:00:18]} Kd3 {[%emt 0:00:00]} 56. Ne6 {[%emt 0:00:33]} Nb5 {[%emt 0:00:00]} 57. Nd8 {[%emt 0:00:18]} Nd6 {[%emt 0:00:00]} 58. Ne6 {[%emt 0:00:20]} Ne4+ {[%emt 0:00:00]} 59. Kd5 {[%emt 0:00:51]} c6+ {[%emt 0:00:00]} 60. Ke5 {[%emt 0:00:22]} Nd2 {[%emt 0:00:00]} 61. Kd6 {[%emt 0:03:42]} Kc4 {[%emt 0:00:00]} 62. Kc7 {[%emt 0:00:20]} Kxb4 {[%emt 0:00:00]} 63. Kxb7 {[%emt 0:00:09]} Kxa5 {[%emt 0:00:00]} 64. Kxc6 {[%emt 0:00:12]} Kb4 {[%emt 0:00:00]} 65. Nc5 {[%emt 0:02:08]} a5 {[%emt 0:00:00]} 66. Nd3+ {[%emt 0:00:47]} Kc4 {[%emt 0:00:00]} 67. Nb2+ {[%emt 0:00:14]} Kc3 {[%emt 0:00:00]} 68. Kb5 {[%emt 0:00:09]} 1/2-1/2

[Event "WSTCC-50 2024"]
[Site "Krakow"]
[Date "2024.07.06"]
[Round "5.3"]
[White "Baliuniene, Margarita"]
[Black "Csom, Etelka"]
[Result "1/2-1/2"]
[ECO "D10"]
[WhiteElo "1960"]
[BlackElo "1996"]
[Annotator "NA RC"]
[PlyCount "74"]
[EventDate "2024.07.01"]
[EventType "team-tourn"]
[EventCountry "POL"]
[SourceTitle "playchess.com"]
[Source "ChessBase"]
[SourceQuality "1"]
[TimeControl "40/5400+30:1800+30"]

1. d4 {[%emt 0:00:03]} d5 {[%emt 0:00:21]} 2. c4 {[%emt 0:00:09]} c6 {[%emt 0:00:43]} 3. cxd5 {[%emt 0:01:03]} cxd5 {[%emt 0:00:23]} 4. Nc3 {[%emt 0:00:40]} Nf6 {[%emt 0:00:26]} 5. Bf4 {[%emt 0:00:26]} a6 {[%emt 0:01:02]} 6. Nf3 {[%emt 0:00:22]} Nc6 {[%emt 0:00:28]} 7. e3 {[%emt 0:00:47]} e6 {[%emt 0:01:22]} 8. Bd3 {[%emt 0:02:24]} Bd6 {[%emt 0:02:48]} 9. Bxd6 {[%emt 0:00:30]} Qxd6 {[%emt 0:00:14]} 10. Rc1 {[%emt 0:01:24]} O-O {[%emt 0:01:29]} 11. O-O {[%emt 0:00:06]} Bd7 {[%emt 0:01:50]} 12. Na4 {[%emt 0:11:43]} Nb4 {[%emt 0:08:25]} 13. Bb1 {[%emt 0:02:40]} Bxa4 {[%emt 0:03:47]} 14. Qxa4 {[%emt 0:00:14]} Nc6 {[%emt 0:05:41]} 15. a3 {[%emt 0:04:49]} Rac8 {[%emt 0:04:23]} 16. b4 {[%emt 0:08:14]} Ne4 {[%emt 0:09:12]} 17. Bxe4 {[%emt 0:04:23]} dxe4 {[%emt 0:00:10]} 18. Nd2 {[%emt 0:00:12]} f5 {[%emt 0:04:52]} 19. Nc4 {[%emt 0:04:20]} Qe7 {[%emt 0:00:38]} 20. Nb6 {[%emt 0:03:36]} Rcd8 {[%emt 0:02:53]} 21. Qb3 {[%emt 0:01:20]} Qd6 {[%emt 0:02:39]} 22. Na4 {[%emt 0:03:41]} b6 {[%emt 0:07:38]} 23. Qc4 {[%emt 0:10:51]} Ne7 {[%emt 0:10:20]} 24. Qxa6 {[%emt 0:00:58]} Nd5 {[%emt 0:00:14]} 25. Qb5 {[%emt 0:04:49]} Rc8 {[%emt 0:02:51]} 26. Rc4 {[%emt 0:02:06]} Rxc4 {[%emt 0:05:24]} 27. Qxc4 {[%emt 0:00:06]} Qd7 {[%emt 0:01:43]} 28. Qb3 {[%emt 0:14:50]} Rc8 {[%emt 0:00:26]} 29. g3 {[%emt 0:00:17]} Rc7 {[%emt 0:03:56]} 30. Ra1 {[%emt 0:04:26]} Qb5 {[%emt 0:02:16]} 31. Nb2 {[%emt 0:04:20]} Qe2 {[%emt 0:02:25]} 32. Rf1 {[%emt 0:04:41]} Kf7 {[%emt 0:03:37]} 33. Nd1 {[%emt 0:02:14]} Rc1 {[%emt 0:03:02]} 34. Qb2 {[%emt 0:00:41]} Rc2 {[%emt 0:00:40]} 35. Qb3 {[%emt 0:00:32]} Rc1 {[%emt 0:00:20]} 36. Qb2 {[%emt 0:00:08]} Rc2 {[%emt 0:00:12]} 37. Qb3 {[%emt 0:00:04]} Rc1 {[%emt 0:00:46]} 1/2-1/2